bitfinex/quotes_ETHUSD_20250726
["timestamp","ask_amount","ask_price","bid_price","bid_amount"]
[1753526603895,2.64305537,3783.5,3783.4,0.132]
[1753526604094,0.8096,3783.4,3782.0,0.7613]
[1753526604334,2.64373761,3782.6,3782.0,0.7613]
[1753526604537,2.64368952,3782.6,3782.0,0.7613]
[1753526604857,2.64428476,3781.8,3781.3,0.4565]
[1753526604995,2.664,3781.9,3781.3,0.4565]
[1753526605197,0.14096284,3782.5,3781.7,0.132]
[1753526605395,0.14096284,3782.5,3781.1,0.7613]
[1753526605396,3.8436,3782.4,3781.1,0.7613]
[1753526605603,2.64397292,3782.2,3781.1,0.7613]
[1753526605796,2.64389392,3782.3,3782.0,0.132]
[1753526606007,2.6440643,3782.1,3782.0,0.132]
[1753526606193,0.37,3782.3,3782.0,0.132]
[1753526606397,0.00896806,3782.1,3781.6,0.4565]
[1753526606598,0.00896806,3782.1,3781.7,3.53390263]
[1753526606846,0.00896806,3782.1,3782.0,0.132]
[1753526607481,2.67096806,3782.1,3782.0,0.132]
[1753526608509,0.00896806,3782.1,3782.0,0.132]
[1753526609097,0.00896806,3782.1,3782.0,3.23260364]
[1753526609403,2.66996806,3782.1,3782.0,0.132]
[1753526610833,2.66996806,3782.1,3780.8,5.64493659]
[1753526610834,3.45383182,3781.9,3781.0,2.64574385]
[1753526611004,3.45383182,3781.9,3781.0,0.001]
[1753526611217,0.8096,3781.9,3781.8,0.132]
[1753526611427,6.57927356,3781.9,3781.8,0.132]
[1753526611751,2.64457013,3781.4,3781.0,0.001]
[1753526612044,2.64440785,3781.6,3781.2,0.132]
[1753526612337,0.00897209,3781.3,3781.2,0.132]
[1753526612720,2.66497209,3781.3,3781.2,0.132]
[1753526613636,2.66397209,3781.3,3781.2,0.132]
[1753526613800,0.00897209,3781.3,3781.2,0.132]
[1753526614000,2.66197209,3781.3,3781.2,0.132]
[1753526615102,0.00897209,3781.3,3781.2,0.132]
[1753526615297,2.66197209,3781.3,3781.2,0.132]
[1753526615497,0.00897209,3781.3,3781.2,0.132]
[1753526615733,0.00897209,3781.3,3781.2,11.82996919]
[1753526615941,0.00897209,3781.3,3781.2,12.37996919]
[1753526616158,2.65,3781.9,3781.8,2.64424348]
[1753526616510,2.65,3781.9,3781.8,3.10074348]
[1753526616810,0.793,3782.6,3781.8,0.8896]
[1753526617012,2.649,3782.5,3782.3,2.64382963]
[1753526617214,2.649,3782.5,3781.9,0.48294173]
[1753526617215,2.65797439,3782.5,3782.2,2.64394854]
[1753526617529,2.65797439,3782.5,3781.9,3.10062781]
[1753526617530,2.65797439,3782.5,3782.1,0.4565]
[1753526617913,0.00897439,3782.5,3782.0,2.64404617]
[1753526618114,2.647,3782.4,3782.0,2.64404617]
[1753526618530,0.00897439,3782.3,3782.0,2.64404617]
[1753526618824,0.00897439,3782.3,3781.9,2.6441637]
[1753526619025,0.00897439,3782.3,3781.5,0.4565]
[1753526619536,0.00897439,3782.3,3781.7,2.64425634]
[1753526619730,0.00897439,3782.3,3781.8,2.64422339]
[1753526619923,0.00897439,3782.3,3781.9,2.64416997]
[1753526620128,2.646,3782.2,3781.8,2.64423413]
[1753526620638,2.646,3782.2,3781.9,2.64417204]
[1753526620811,0.00897439,3782.1,3781.5,0.4565]
[1753526620998,0.00897439,3782.1,3781.9,2.64414319]
[1753526621203,0.00897439,3782.1,3781.8,2.64423389]
[1753526621404,0.00897439,3782.1,3781.7,3.10080125]
[1753526621639,0.00897439,3782.1,3781.3,0.4331]
[1753526621640,0.00897439,3782.1,3781.3,0.4565]
[1753526621839,0.00897439,3782.1,3781.5,2.64443496]
[1753526622042,2.64897439,3782.1,3781.6,0.02644383]
[1753526622343,2.64897439,3782.1,3781.7,3.10075925]
[1753526623007,0.00897439,3782.1,3781.7,3.10075925]
[1753526624144,0.00897439,3782.1,3781.8,0.4565]
[1753526624641,0.00897439,3782.1,3781.9,0.4565]
[1753526624848,0.80257439,3782.1,3781.3,0.4565]
[1753526625056,0.80257439,3782.1,3781.4,2.64452319]
[1753526625262,0.7936,3782.1,3781.5,2.64444457]
[1753526625427,0.00897128,3782.0,3781.5,2.64444457]
[1753526625622,0.7936,3782.1,3781.5,2.6444447]
[1753526625952,0.00897128,3781.9,3781.4,2.64450837]
[1753526626280,0.00897128,3781.9,3781.5,0.4565]
[1753526626962,0.00897128,3781.9,3781.8,0.132]
[1753526627329,0.00897128,3781.9,3781.8,0.5885]
[1753526628170,2.65314484,3781.9,3781.8,0.132]
[1753526628386,2.89394484,3781.9,3781.1,0.4792]
[1753526628670,2.89394484,3781.9,3781.7,0.132]
[1753526629077,2.63,3781.8,3781.7,0.132]
[1753526629246,2.629,3781.8,3781.7,0.132]
[1753526629770,2.63797128,3781.8,3781.7,0.6112]
[1753526630074,2.63697128,3781.8,3781.7,0.6112]
[1753526630481,2.63697128,3781.8,3781.7,0.132]
[1753526630637,0.00897128,3781.8,3781.7,0.132]
[1753526630956,2.64408779,3782.1,3781.7,0.132]
[1753526631155,2.64396734,3782.2,3782.0,0.132]
[1753526631473,3.4793693,3782.5,3782.0,0.132]
[1753526631673,2.758,3782.6,3781.0,0.001]
[1753526631674,2.64412092,3782.0,3781.0,0.001]
[1753526631874,2.64389392,3782.3,3781.7,0.132]
[1753526631875,2.627,3781.9,3781.7,0.132]
[1753526632174,2.63497306,3781.8,3781.7,0.132]
[1753526633867,5.27921654,3781.8,3781.7,0.132]
[1753526634067,6.11481654,3781.8,3781.7,0.132]
[1753526634395,2.64473301,3781.1,3781.0,0.001]
[1753526634550,5.26673301,3781.1,3781.0,0.001]
[1753526634750,6.50270595,3781.1,3781.0,0.001]
[1753526635067,7.00470595,3781.1,3781.0,0.001]
[1753526635472,6.63470595,3781.1,3781.0,0.001]
[1753526635890,7.00470595,3781.1,3781.0,0.001]
[1753526636052,10.00470595,3781.1,3781.0,1e-08]
[1753526636397,39.99573301,3781.1,3781.0,1e-08]
[1753526636696,10.00370595,3781.1,3781.0,1e-08]
[1753526639559,10.55370595,3781.1,3781.0,1e-08]
[1753526639761,2.6452927,3780.3,3780.2,0.001]
[1753526639999,9.0772927,3780.3,3780.2,0.001]
[1753526640201,9.2092927,3780.3,3780.2,0.001]
[1753526640373,9.6748927,3780.3,3780.2,0.001]
[1753526640581,6.45936267,3780.2,3780.1,1e-08]
[1753526640767,37.84496267,3780.2,3780.1,1e-08]
[1753526640964,6.45985262,3779.5,3779.4,0.001]
[1753526641198,9.75885262,3779.5,3779.4,1e-08]
[1753526641367,44.41442982,3779.5,3779.4,1e-08]
[1753526641563,11.24742982,3779.5,3779.4,1e-08]
[1753526641769,12.89682982,3779.5,3779.4,1e-08]
[1753526642481,10.27982982,3779.5,3779.4,1e-08]
[1753526642691,12.89882982,3779.5,3779.4,1e-08]
[1753526643093,10.27982982,3779.5,3779.4,1e-08]
[1753526643294,12.89682982,3779.5,3779.4,1e-08]
[1753526643877,0.0089772,3779.5,3779.4,1e-08]
[1753526644078,2.616,3779.5,3779.4,0.90670001]
[1753526644304,2.6249772,3779.5,3779.4,0.90670001]
[1753526645289,2.6239772,3779.5,3779.4,0.90670001]
[1753526645612,0.0089772,3779.5,3779.4,3.55262264]
[1753526645774,0.4656,3780.9,3779.7,2.64570307]
[1753526645775,2.64516559,3780.5,3779.7,2.64570307]
[1753526645973,2.615,3780.4,3779.8,0.9067]
[1753526646204,2.615,3780.3,3779.8,0.9067]
[1753526646668,2.614,3780.2,3779.8,2.6456405]
[1753526646872,2.614,3780.1,3779.9,0.9067]
[1753526647108,0.7759,3780.6,3779.9,3.07304495]
[1753526647297,2.613,3780.5,3780.0,0.4792]
[1753526647478,2.613,3780.5,3779.8,2.64563828]
[1753526647793,0.7759,3780.6,3780.1,0.9067]
[1753526647970,2.612,3780.4,3779.6,0.4792]
[1753526648167,3.0,3780.3,3779.4,1e-08]
[1753526648404,2.64585262,3779.5,3779.4,1e-08]
[1753526648610,6.01005262,3779.5,3779.4,1e-08]
[1753526648908,9.84565262,3779.5,3779.4,1e-08]
[1753526649416,40.39565262,3779.5,3779.4,1e-08]
[1753526649803,40.64155283,3779.5,3779.4,1e-08]
[1753526650307,40.39565262,3779.5,3779.4,1e-08]
[1753526650617,40.6414209,3779.5,3779.4,1e-08]
[1753526650770,38.0304209,3779.5,3779.4,1e-08]
[1753526650973,40.6414209,3779.5,3779.4,1e-08]
[1753526651473,10.65040128,3779.5,3779.4,1e-08]
[1753526651707,40.91578383,3779.5,3779.4,1e-08]
[1753526652073,40.90680345,3779.5,3779.4,1e-08]
[1753526652300,40.64940031,3779.5,3779.4,1e-08]
[1753526652911,40.40263203,3779.5,3779.4,1e-08]
[1753526653089,40.64823461,3779.5,3779.4,1e-08]
[1753526653693,10.64623461,3779.5,3779.4,1e-08]
[1753526653878,40.64623461,3779.5,3779.4,1e-08]
[1753526654903,8.03923461,3779.5,3779.4,1e-08]
[1753526655107,10.64623461,3779.5,3779.4,1e-08]
[1753526655810,9.80663461,3779.5,3779.4,1e-08]
[1753526656013,7.20363461,3779.5,3779.4,1e-08]
[1753526656217,9.80663461,3779.5,3779.4,1e-08]
[1753526657012,3.65363461,3779.5,3779.4,1e-08]
[1753526657317,3.40803203,3779.5,3779.4,1e-08]
[1753526657482,3.40803203,3779.5,3779.4,0.47920001]
[1753526657682,8.25583203,3779.5,3779.4,0.47920001]
[1753526657885,0.00897941,3779.5,3779.4,0.90670001]
[1753526658091,2.60997941,3779.5,3779.4,0.90670001]
[1753526659228,5.25583203,3779.5,3779.4,0.90670001]
[1753526659727,5.25783203,3779.5,3779.4,0.85670001]
[1753526660091,5.24885262,3779.5,3779.4,0.85670001]
[1753526660289,2.64599316,3779.3,3778.9,0.8126]
[1753526660524,5.2578351,3779.5,3778.6,0.001]
[1753526660525,2.64641278,3778.7,3778.6,0.4446]
[1753526660724,5.24341278,3778.7,3778.6,0.4446]
[1753526660925,2.60598248,3778.7,3778.6,0.4446]
[1753526661091,5.25239526,3778.7,3778.6,0.001]
[1753526661288,5.24341278,3778.7,3778.6,0.001]
[1753526661502,5.25239364,3778.7,3778.6,0.001]
[1753526661721,8.25239364,3778.7,3778.6,0.001]
[1753526662317,8.38439364,3778.7,3778.6,0.001]
[1753526663118,30.0,3779.4,3779.3,3.45629264]
[1753526663448,0.06606102,3782.0,3781.9,2.64417356]
[1753526663602,0.06606102,3782.0,3781.9,36.49003594]
[1753526663796,0.06606102,3782.0,3781.9,37.54099166]
[1753526664023,2.704,3783.1,3782.9,2.64346826]
[1753526664223,2.704,3783.1,3782.7,2.64354678]
[1753526664542,0.4795,3784.1,3782.8,0.20573544]
[1753526664710,0.4795,3784.6,3782.9,3.8103]
[1753526665033,0.00898086,3784.0,3783.5,2.6430537]
[1753526665239,2.703,3783.9,3783.1,2.64331802]
[1753526665416,2.703,3783.9,3783.0,0.1793]
[1753526665811,2.70998086,3783.8,3783.1,3.0]
[1753526667241,2.70998086,3783.8,3783.0,0.1793]
[1753526667440,2.70998086,3783.8,3783.1,24.86562]
[1753526667644,2.64298127,3783.7,3783.1,3.0]
[1753526667945,2.70998086,3783.8,3783.1,3.0]
[1753526667946,2.64299273,3783.6,3783.1,3.0]
[1753526668148,2.695,3783.5,3783.2,0.1793]
[1753526668449,2.695,3783.5,3783.3,0.1793]
[1753526669225,2.695,3783.5,3782.9,0.8103]
[1753526669226,2.695,3783.5,3783.0,0.02643404]
[1753526669427,0.00897273,3783.4,3783.0,0.02643404]
[1753526669673,0.00897273,3783.4,3783.0,0.1793]
[1753526669946,0.00897273,3783.4,3783.0,3.0]
[1753526670325,0.00897273,3783.4,3783.0,3.1793]
[1753526670650,0.00897273,3783.4,3782.9,3.4537608]
[1753526670651,0.00897273,3783.4,3782.9,0.8103]
[1753526671752,0.00897273,3783.4,3782.9,3.8103]
[1753526671957,0.00897273,3783.4,3782.9,3.45377432]
[1753526672249,0.00897273,3783.4,3782.9,3.8103]
[1753526672819,0.00897273,3783.4,3782.9,3.45374839]
[1753526673031,0.00897273,3783.4,3782.9,3.8103]
[1753526673520,0.00897273,3783.4,3783.3,0.132]
[1753526674355,2.69097273,3783.4,3783.3,0.132]
[1753526676052,6.24709796,3783.4,3783.0,0.132]
[1753526676256,0.00897273,3783.4,3783.0,0.132]
[1753526676458,2.676,3783.3,3782.9,3.8103]
[1753526676856,2.674,3783.2,3782.9,3.8103]
[1753526677055,0.00897273,3783.4,3783.2,0.132]
[1753526677358,2.674,3783.3,3783.1,0.132]
[1753526677555,2.674,3783.3,3782.9,3.8103]
[1753526677757,2.674,3783.3,3783.2,0.132]
[1753526678142,2.671,3783.3,3783.2,0.132]
[1753526679163,3.584,3783.3,3782.4,0.7614]
[1753526679463,3.584,3783.3,3783.1,0.132]
[1753526679464,3.59297273,3783.3,3783.1,0.132]
[1753526679659,3.55626496,3783.2,3782.4,0.7614]
[1753526679858,2.64350644,3782.9,3782.6,0.132]
[1753526680045,2.64341049,3783.0,3782.6,0.132]
[1753526680356,0.00896924,3782.8,3782.6,0.132]
[1753526680767,0.00896924,3782.8,3782.4,3.40522323]
[1753526680926,0.00896924,3782.8,3782.7,0.132]
[1753526681324,2.67696924,3782.8,3782.7,0.132]
[1753526683083,3.15646924,3782.8,3782.7,0.132]
[1753526683484,3.58996924,3782.8,3782.7,0.132]
[1753526684345,3.15646924,3782.8,3782.7,0.132]
[1753526684579,2.67696924,3782.8,3782.7,0.132]
[1753526685143,2.66596924,3782.8,3782.7,0.132]
[1753526685342,0.00896924,3782.8,3782.7,0.132]
[1753526685543,2.66496924,3782.8,3782.7,0.132]
[1753526685973,2.66396924,3782.8,3782.7,0.132]
[1753526688263,3.60686924,3782.8,3782.7,0.132]
[1753526690352,3.60686924,3782.8,3782.1,0.7831]
[1753526690582,3.60686924,3782.8,3782.5,0.132]
[1753526690778,2.66396924,3782.8,3782.5,0.132]
[1753526690985,0.9429,3782.7,3782.5,0.132]
[1753526691487,0.00896924,3782.6,3782.5,0.132]
[1753526692707,0.00896924,3782.6,3782.5,2.77575413]
[1753526692861,2.65396924,3782.6,3782.5,2.77575413]
[1753526693388,0.00896924,3782.6,3782.5,2.77575413]
[1753526694160,0.24750339,3783.2,3782.5,0.3117]
[1753526694385,2.638,3783.3,3783.2,2.64326496]
[1753526694585,2.88550436,3783.3,3783.2,2.64326496]
[1753526694786,0.24750436,3783.3,3783.2,2.64326496]
[1753526695495,0.24750436,3783.3,3783.1,2.77532713]
[1753526695696,0.24750436,3783.2,3783.1,2.77532713]
[1753526696973,0.002,3783.4,3783.2,2.64322093]
[1753526697481,0.002,3783.4,3783.3,0.132]
[1753526701750,0.24951023,3783.4,3783.3,0.132]
[1753526702247,0.002,3783.4,3783.3,0.132]
[1753526703130,0.002,3783.4,3783.3,2.77519509]
[1753526703751,0.002,3783.4,3783.3,0.132]
[1753526704113,0.002,3783.4,3783.3,2.77519509]
[1753526704338,0.002,3783.4,3783.3,0.132]
[1753526705145,0.002,3783.4,3783.3,2.80162704]
[1753526705344,0.002,3783.4,3783.3,5.77519509]
[1753526705640,0.002,3783.4,3783.3,2.77519509]
[1753526706411,0.002,3783.4,3783.3,0.132]
[1753526706911,0.002,3783.4,3783.3,2.77519509]
[1753526707116,0.002,3783.4,3783.3,0.132]
[1753526707964,0.002,3783.4,3783.3,2.77519509]
[1753526708447,0.002,3783.4,3783.3,0.132]
[1753526708639,0.9449,3783.4,3783.3,2.77519509]
[1753526709345,0.491,3783.4,3783.3,2.77519509]
[1753526709520,0.002,3783.4,3783.3,2.77519509]
[1753526709946,0.01096817,3783.4,3783.3,2.77519509]
[1753526710452,0.01096817,3783.4,3783.3,0.132]
[1753526710753,0.95386817,3783.4,3783.3,0.132]
[1753526712867,3.5969934,3783.4,3783.3,0.132]
[1753526713065,3.5509,3783.4,3782.5,3.0]
[1753526713369,2.64333483,3783.1,3783.0,0.132]
[1753526713834,3.58623483,3783.1,3783.0,0.132]
[1753526714167,3.595203,3783.1,3783.0,0.132]
[1753526714464,0.00896817,3783.1,3783.0,0.132]
[1753526714672,0.95186817,3783.1,3783.0,0.132]
[1753526714970,3.595203,3783.1,3783.0,0.132]
[1753526715536,3.595203,3783.1,3782.9,0.132]
[1753526715732,0.9429,3783.0,3782.9,0.132]
[1753526716177,2.65231798,3783.1,3782.9,0.132]
[1753526716489,0.9429,3783.0,3782.9,0.132]
[1753526717354,0.95186817,3783.0,3782.9,0.132]
[1753526717557,3.59527287,3783.0,3782.9,0.132]
[1753526717772,3.59527287,3783.0,3782.3,3.46019154]
[1753526718072,0.9522,3782.9,3782.8,0.132]
[1753526718556,0.96116817,3782.9,3782.8,0.132]
[1753526718751,3.60464275,3782.9,3782.8,0.132]
[1753526718960,2.64354524,3782.8,3782.6,0.132]
[1753526719160,2.597,3782.7,3782.6,0.132]
[1753526719358,3.5492,3782.7,3782.6,0.132]
[1753526719883,0.00896817,3782.9,3782.6,0.132]
[1753526720085,0.00896817,3782.7,3782.6,2.80212107]
[1753526720303,0.00896817,3782.7,3782.6,5.67012107]
[1753526720451,0.00896817,3782.7,3782.6,6.73058423]
[1753526720648,0.00896817,3782.7,3782.6,6.72889902]
[1753526721389,0.002,3783.4,3783.3,2.64319509]
[1753526721690,0.002,3783.4,3783.3,6.55039509]
[1753526722051,0.002,3783.4,3783.3,6.73009509]
[1753526722390,0.8158,3781.9,3781.2,0.001]
[1753526722592,0.132,3781.4,3781.2,0.001]
[1753526722807,7.09883592,3781.3,3781.2,0.001]
[1753526722962,6.2387631,3781.3,3781.2,0.001]
[1753526723164,4.40996998,3781.3,3780.4,0.001]
[1753526723388,2.64515275,3780.5,3780.4,0.001]
[1753526723861,4.39962273,3780.5,3780.4,0.001]
[1753526724368,1.75446998,3780.5,3778.5,0.9838]
[1753526724616,0.4621,3780.4,3778.7,0.1797]
[1753526724898,3.1021,3780.4,3778.7,0.1797]
[1753526725065,3.1021,3780.4,3779.1,3.0]
[1753526725262,3.1021,3780.4,3779.3,3.0]
[1753526725600,2.6452927,3780.3,3779.3,2.6459789]
[1753526725763,3.1021,3780.4,3779.3,2.6459789]
[1753526725963,0.4901,3780.3,3779.5,2.64584012]
[1753526726301,0.4901,3780.3,3779.6,2.64577152]
[1753526726803,0.4901,3780.3,3779.2,3.1797]
[1753526727001,0.4901,3780.3,3779.4,3.0]
[1753526727203,0.4901,3780.3,3779.6,2.64575895]
[1753526727372,2.64495945,3780.8,3779.3,2.64599264]
[1753526727373,3.1271,3780.7,3779.8,0.8041]
[1753526727702,3.1271,3780.7,3779.8,3.44974262]
[1753526727899,3.1271,3780.7,3779.9,2.64557263]
[1753526728104,3.1271,3780.7,3780.0,2.64549397]
[1753526728282,0.00897608,3780.6,3780.0,2.64550098]
[1753526728684,0.00897608,3780.6,3780.2,2.64536136]
[1753526728882,0.00897608,3780.6,3779.9,2.67202835]
[1753526729079,0.00897608,3780.6,3779.9,0.02645572]
[1753526729302,0.00897608,3780.6,3780.2,2.64535121]
[1753526729501,0.00897608,3780.6,3780.3,2.64527943]
[1753526729804,0.00897608,3780.6,3780.1,2.67187934]
[1753526730216,0.9522,3780.5,3779.6,3.0]
[1753526730372,3.59742432,3780.4,3779.6,2.64578256]
[1753526730721,0.49907608,3780.3,3779.8,3.0]
[1753526730871,0.00897608,3780.3,3779.8,3.0]
[1753526731067,0.9522,3780.2,3779.8,3.0]
[1753526731551,0.00897608,3780.1,3779.8,3.0]
[1753526731811,0.00897608,3780.1,3779.9,0.02645572]
[1753526732126,0.00897608,3780.1,3780.0,5.67195766]
[1753526732285,0.00897608,3780.1,3780.0,5.64550264]
[1753526732603,0.00897608,3780.1,3780.0,9.23510264]
[1753526732830,0.00897608,3780.1,3774.7,0.001]
[1753526732831,2.27045189,3776.3,3774.7,0.001]
[1753526732972,5.64858565,3775.6,3775.5,4.0]
[1753526733174,5.64872596,3775.4,3775.3,0.4053]
[1753526733398,5.98077891,3775.4,3775.3,0.4053]
[1753526733707,6.93297891,3775.4,3775.3,0.4053]
[1753526734005,11.16900278,3775.4,3775.3,0.4053]
[1753526734511,11.96960278,3775.4,3775.3,0.4053]
[1753526734711,7.73357891,3775.4,3775.3,0.4053]
[1753526735469,8.28357891,3775.4,3774.7,0.001]
[1753526735670,0.9522,3775.3,3774.7,0.001]
[1753526736234,3.0,3775.1,3774.7,0.001]
[1753526736429,0.96118926,3775.2,3774.7,0.001]
[1753526736717,0.9522,3775.0,3774.7,0.001]
[1753526737088,0.9522,3774.9,3774.7,0.001]
[1753526737289,0.96118926,3774.9,3774.7,0.001]
[1753526737492,0.9522,3774.8,3774.7,0.001]
[1753526738287,0.96118926,3774.8,3774.7,0.001]
[1753526740739,0.96118926,3774.8,3774.7,2.65021715]
[1753526740909,0.96118926,3774.8,3774.7,0.001]
[1753526741234,0.96118926,3774.8,3774.7,2.65021715]
[1753526741439,0.96118926,3774.8,3774.7,0.001]
[1753526741641,0.96118926,3774.8,3774.7,2.65021715]
[1753526742736,0.96118926,3774.8,3774.7,0.001]
[1753526742908,0.96118926,3774.8,3774.7,2.975]
[1753526745319,0.96118926,3774.8,3774.7,0.001]
[1753526745497,0.96118926,3774.8,3774.7,5.61621715]
[1753526745700,0.14178926,3774.8,3774.7,2.967]
[1753526746135,0.14178926,3774.8,3774.7,5.61621715]
[1753526746498,0.1328,3775.2,3774.9,2.6490491]
[1753526746703,0.1328,3775.2,3774.7,2.967]
[1753526746911,0.19925295,3775.4,3774.7,2.967]
[1753526746912,0.57365685,3775.4,3775.1,2.64887514]
[1753526747104,0.4901,3775.2,3774.9,2.64907679]
[1753526747305,0.4901,3775.2,3775.1,2.64893645]
[1753526747518,0.4901,3775.2,3775.0,2.64899017]
[1753526747715,0.4901,3775.2,3775.1,2.64893645]
[1753526748041,0.4901,3775.2,3774.8,2.78194482]
[1753526748337,0.4927,3775.1,3774.8,0.1328]
[1753526748540,0.9503,3775.0,3774.9,2.957]
[1753526748907,0.95929031,3775.0,3774.7,0.001]
[1753526749110,0.9503,3774.9,3774.8,2.949]
[1753526749307,0.9503,3774.9,3774.7,0.001]
[1753526749533,0.00899031,3774.9,3774.8,5.59714697]
[1753526751107,0.00899031,3774.9,3774.8,2.64914697]
[1753526751309,0.00899031,3774.9,3774.8,5.59014697]
[1753526751604,0.00899031,3774.9,3774.8,2.64914697]
[1753526751808,0.00899031,3774.9,3774.8,5.58714697]
[1753526752548,0.25222513,3774.9,3774.8,5.58714697]
[1753526753009,0.25222513,3774.9,3774.8,5.58414697]
[1753526753211,1.20252513,3774.9,3774.7,2.65019808]
[1753526753444,1.19353482,3774.8,3774.7,2.65021715]
[1753526753646,0.73593482,3774.8,3774.7,5.58221715]
[1753526753942,0.25222513,3774.8,3774.7,5.58221715]
[1753526754668,0.74492513,3774.8,3774.7,5.58221715]
[1753526754846,1.20252513,3774.8,3774.7,2.65021715]
[1753526755047,1.20252513,3774.8,3774.7,5.57621715]
[1753526755926,0.25222513,3774.8,3774.7,5.57621715]
[1753526756441,0.25222513,3774.8,3774.7,5.70901715]
[1753526760382,0.25222513,3774.8,3774.7,5.70801715]
[1753526761141,0.1328,3775.4,3775.3,2.64879612]
[1753526761448,1.0831,3775.4,3775.3,2.64879612]
[1753526761656,1.0831,3775.4,3775.3,5.54879612]
[1753526761855,1.09208912,3775.4,3775.3,2.898]
[1753526762055,1.09208912,3775.4,3775.3,2.897]
[1753526762258,1.09208912,3775.4,3774.7,0.1328]
[1753526762259,1.09208912,3775.4,3775.1,2.64892255]
[1753526762470,0.14178912,3775.4,3775.3,2.897]
[1753526763181,1.09208912,3775.4,3775.3,2.897]
[1753526763749,1.09208912,3775.4,3775.3,2.893]
[1753526763943,0.14178912,3775.4,3775.3,5.54179612]
[1753526764144,4.03869849,3776.0,3775.3,5.54179612]
[1753526764145,0.14867218,3775.9,3775.8,2.64844536]
[1753526764357,0.132,3776.5,3775.9,2.64837522]
[1753526764681,0.14873559,3776.7,3776.6,2.64788434]
[1753526764887,0.4927,3776.7,3776.6,5.54088434]
[1753526765263,0.9503,3776.7,3776.6,2.891]
[1753526765779,0.9503,3776.7,3776.4,2.64802301]
[1753526765992,0.9503,3776.6,3776.2,0.1328]
[1753526766199,0.132,3776.8,3776.5,2.888]
[1753526766695,0.132,3776.8,3776.3,2.64804896]
[1753526766861,0.9503,3776.7,3776.3,2.64804896]
[1753526767049,0.9503,3776.6,3776.4,2.883]
[1753526767250,0.9503,3776.5,3776.4,2.883]
[1753526767554,0.9503,3776.5,3776.4,5.53100489]
[1753526768882,0.6247,3776.8,3776.7,2.64781422]
[1753526769089,0.7525,3777.1,3776.8,2.64773555]
[1753526769306,1.0823,3777.0,3776.7,5.53080792]
[1753526769492,0.9503,3776.9,3776.7,5.53080792]
[1753526769679,0.132,3777.0,3776.7,5.53080792]
[1753526769886,0.9503,3776.8,3776.7,5.53080792]
[1753526770707,0.4927,3776.8,3776.7,5.53080792]
[1753526771273,0.132,3777.0,3776.7,2.883]
[1753526771474,0.132,3777.0,3776.9,2.64767401]
[1753526771974,0.134,3777.0,3776.9,2.64767401]
[1753526772495,0.002,3777.0,3776.9,2.64767401]
[1753526773206,0.002,3777.0,3776.9,2.82737401]
[1753526773410,0.002,3777.0,3776.9,3.64997401]
[1753526773611,0.002,3777.0,3776.9,3.64857401]
[1753526774109,0.002,3777.0,3776.9,3.46887401]
[1753526774513,0.002,3777.0,3776.9,5.50567401]
[1753526774720,0.4947,3777.0,3776.9,5.50567401]
[1753526774880,0.9523,3777.0,3776.9,5.50567401]
[1753526775079,0.9523,3777.0,3776.9,5.50467401]
[1753526776316,0.9523,3777.0,3776.9,2.857]
[1753526776520,0.961285,3777.0,3776.9,5.50467401]
[1753526777334,0.961285,3777.0,3776.9,2.857]
[1753526777491,0.961285,3777.0,3776.9,2.846]
[1753526778107,0.961285,3777.0,3776.8,0.132]
[1753526778327,0.961285,3777.0,3776.9,5.49367401]
[1753526778529,0.961285,3777.0,3776.9,2.846]
[1753526778914,0.961285,3777.0,3775.0,4.2]
[1753526778915,0.961285,3777.0,3775.6,2.64992107]
[1753526779103,0.477,3776.9,3776.5,0.132]
[1753526779312,0.9245,3776.9,3776.6,2.841]
[1753526779507,0.010985,3777.0,3776.6,2.841]
[1753526779819,0.933485,3776.8,3776.7,2.84]
[1753526780010,1.18018717,3776.8,3776.7,2.84]
[1753526780428,0.933485,3776.8,3776.7,2.84]
[1753526781107,0.933485,3776.8,3776.5,0.132]
[1753526781307,0.9245,3776.7,3776.6,2.834]
[1753526781719,0.9245,3776.7,3776.5,0.132]
[1753526782039,0.8212,3776.5,3776.1,0.1328]
[1753526782240,0.24672803,3776.4,3776.3,2.832]
[1753526782394,0.1328,3776.2,3776.1,2.831]
[1753526782794,0.008985,3776.4,3776.1,2.9638]
[1753526783035,0.132,3776.8,3776.3,2.64804316]
[1753526783243,0.132,3776.8,3776.3,2.78084316]
[1753526783425,0.132,3776.8,3776.3,2.78089298]
[1753526783726,0.132,3776.8,3776.7,2.64781422]
[1753526783907,0.4495,3777.0,3776.7,2.828]
[1753526784227,1.0585,3777.0,3776.7,2.828]
[1753526784431,0.477,3776.9,3776.7,2.828]
[1753526785909,0.4475,3776.9,3776.7,2.828]
[1753526786113,0.9245,3776.8,3776.7,2.828]
[1753526786336,30.55,3776.7,3774.8,0.7739]
[1753526786635,0.8086,3775.3,3774.2,2.65054964]
[1753526786795,0.8086,3775.3,3774.4,3.2564131]
[1753526787000,0.9245,3775.2,3774.4,3.2564131]
[1753526787217,3.57340066,3775.2,3774.4,3.2564131]
[1753526787437,3.45740556,3775.3,3774.5,2.64935417]
[1753526787738,0.9245,3775.1,3774.5,2.64934343]
[1753526788041,0.24705008,3775.0,3774.2,0.001]
[1753526788203,0.9245,3775.0,3774.7,2.847]
[1753526788596,0.9245,3775.0,3774.4,2.64936745]
[1753526788841,0.9245,3775.0,3774.6,2.841]
[1753526790642,0.933487,3775.0,3774.5,5.49033995]
[1753526790793,0.933487,3775.0,3774.5,2.841]
[1753526791605,0.933487,3775.0,3774.5,5.49034205]
[1753526791814,0.933487,3775.0,3774.5,2.841]
[1753526792803,3.58249362,3775.0,3774.5,2.841]
[1753526794320,3.58249362,3775.0,3774.4,2.829]
[1753526794934,0.933487,3775.0,3774.4,2.829]
[1753526795335,0.933487,3775.0,3774.4,5.47840551]